[Event "Titled Tuesday Blitz June 29 2021"]
[White "Hikaru"]
[Black "dretch"]
[WhiteElo "3163"]
[BlackElo "2827"]
[Result "1-0"]
[Round "04"]
[TimeControl "180+1"]
[Date "2021.06.29"]
[WhiteClock "0:00:13"]
[BlackClock "0:00:01"]

1. d4 {[%clk 0:03:00]}  d5 {[%clk 0:02:59]} 2. c4 {[%clk 0:02:59]}  c6 {[%clk 0:02:59]} 3. Nf3 {[%clk 0:03:00]}  Nf6 {[%clk 0:02:59]} 4. e3 {[%clk 0:03:00]}  Bg4 {[%clk 0:02:57]} 5. h3 {[%clk 0:02:59]}  Bxf3 {[%clk 0:02:56]} 6. Qxf3 {[%clk 0:03:00]}  e6 {[%clk 0:02:56]} 7. Nc3 {[%clk 0:03:00]}  Nbd7 {[%clk 0:02:55]} 8. Bd3 {[%clk 0:03:00]}  Bb4 {[%clk 0:02:53]} 9. O-O {[%clk 0:03:00]}  O-O {[%clk 0:02:50]} 10. Rd1 {[%clk 0:02:57]}  Qe7 {[%clk 0:02:40]} 11. Qe2 {[%clk 0:02:57]}  Rad8 {[%clk 0:02:32]} 12. a3 {[%clk 0:02:49]}  Ba5 {[%clk 0:02:32]} 13. Bd2 {[%clk 0:02:49]}  dxc4 {[%clk 0:02:29]} 14. Bxc4 {[%clk 0:02:49]}  e5 {[%clk 0:02:28]} 15. Qf3 {[%clk 0:02:39]}  Bc7 {[%clk 0:02:14]} 16. Ba2 {[%clk 0:02:34]}  exd4 {[%clk 0:01:59]} 17. exd4 {[%clk 0:02:34]}  Qd6 {[%clk 0:02:00]} 18. g3 {[%clk 0:02:34]}  Qxd4 {[%clk 0:01:49]} 19. Be3 {[%clk 0:01:55]}  Qe5 {[%clk 0:01:44]} 20. Bxa7 {[%clk 0:01:49]}  Nb6 {[%clk 0:01:20]} 21. Re1 {[%clk 0:01:30]}  Qa5 {[%clk 0:01:16]} 22. Re7 {[%clk 0:01:19]}  Rd7 {[%clk 0:01:02]} 23. Bxb6 {[%clk 0:01:02]}  Qxb6 {[%clk 0:00:53]} 24. Re2 {[%clk 0:01:00]}  Bd6 {[%clk 0:00:33]} 25. Rae1 {[%clk 0:00:59]}  Qd8 {[%clk 0:00:29]} 26. Kg2 {[%clk 0:00:46]}  Re7 {[%clk 0:00:26]} 27. Rd1 {[%clk 0:00:41]}  Rxe2 {[%clk 0:00:23]} 28. Nxe2 {[%clk 0:00:42]}  Qe7 {[%clk 0:00:22]} 29. Nd4 {[%clk 0:00:42]}  Bc5 {[%clk 0:00:18]} 30. Nf5 {[%clk 0:00:34]}  Qe5 {[%clk 0:00:18]} 31. b4 {[%clk 0:00:32]}  Bb6 {[%clk 0:00:18]} 32. Rd2 {[%clk 0:00:28]}  Bc7 {[%clk 0:00:04]} 33. Re2 {[%clk 0:00:25]}  Qa1 {[%clk 0:00:04]} 34. Bb3 {[%clk 0:00:18]}  g6 {[%clk 0:00:05]} 35. Nh6+ {[%clk 0:00:14]}  Kg7 {[%clk 0:00:05]} 36. Nxf7 {[%clk 0:00:14]}  Rxf7 {[%clk 0:00:04]} 37. Bxf7 {[%clk 0:00:14]}  Kxf7 {[%clk 0:00:05]} 38. Qb3+ {[%clk 0:00:15]}  Kf8 {[%clk 0:00:05]} 39. Qe6 {[%clk 0:00:14]}  Bb6 {[%clk 0:00:02]} 40. Qc8+ {[%clk 0:00:13]}  Kg7 {[%clk 0:00:02]} 41. Qxb7+ {[%clk 0:00:13]}  Kh6 {[%clk 0:00:02]} 42. Qxb6 {[%clk 0:00:13]}  Qc3 {[%clk 0:00:01]} 43. Qe3+ {[%clk 0:00:13]} 1-0


[Site "https://www.chess.com"]

[Event "Titled Tuesday Blitz June 29 2021"]
[White "IMTominho"]
[Black "ozates"]
[WhiteElo "2845"]
[BlackElo "2506"]
[Result "1-0"]
[Round "04"]
[TimeControl "180+1"]
[Date "2021.06.29"]
[WhiteClock "0:00:59"]
[BlackClock "0:00:03"]

1. d4 {[%clk 0:03:00]}  Nf6 {[%clk 0:02:58]} 2. c4 {[%clk 0:02:56]}  g6 {[%clk 0:02:58]} 3. Nc3 {[%clk 0:02:56]}  Bg7 {[%clk 0:02:58]} 4. e4 {[%clk 0:02:55]}  O-O {[%clk 0:02:58]} 5. Be2 {[%clk 0:02:56]}  d6 {[%clk 0:02:57]} 6. Nf3 {[%clk 0:02:56]}  c5 {[%clk 0:02:55]} 7. d5 {[%clk 0:02:52]}  e5 {[%clk 0:02:49]} 8. O-O {[%clk 0:02:46]}  Ne8 {[%clk 0:02:49]} 9. Rb1 {[%clk 0:02:34]}  h6 {[%clk 0:02:45]} 10. Ne1 {[%clk 0:02:23]}  f5 {[%clk 0:02:43]} 11. exf5 {[%clk 0:02:17]}  gxf5 {[%clk 0:02:36]} 12. b4 {[%clk 0:02:05]}  cxb4 {[%clk 0:02:35]} 13. Rxb4 {[%clk 0:02:06]}  e4 {[%clk 0:02:30]} 14. Nb5 {[%clk 0:01:52]}  Na6 {[%clk 0:02:29]} 15. Rb3 {[%clk 0:01:51]}  Nc5 {[%clk 0:02:28]} 16. Rg3 {[%clk 0:01:49]}  f4 {[%clk 0:02:27]} 17. Rxg7+ {[%clk 0:01:47]}  Nxg7 {[%clk 0:02:26]} 18. Bb2 {[%clk 0:01:42]}  a6 {[%clk 0:02:22]} 19. Nd4 {[%clk 0:01:41]}  Qg5 {[%clk 0:02:07]} 20. f3 {[%clk 0:01:38]}  Bd7 {[%clk 0:01:18]} 21. fxe4 {[%clk 0:01:35]}  Nxe4 {[%clk 0:01:19]} 22. Nef3 {[%clk 0:01:33]}  Qg6 {[%clk 0:01:18]} 23. Bd3 {[%clk 0:01:30]}  Rae8 {[%clk 0:01:17]} 24. Qc2 {[%clk 0:01:27]}  Re7 {[%clk 0:00:26]} 25. Nd2 {[%clk 0:01:26]}  Rfe8 {[%clk 0:00:23]} 26. Rxf4 {[%clk 0:01:20]}  Qg5 {[%clk 0:00:11]} 27. Rxe4 {[%clk 0:01:18]}  Rxe4 {[%clk 0:00:11]} 28. Nxe4 {[%clk 0:01:19]}  Qe3+ {[%clk 0:00:11]} 29. Nf2 {[%clk 0:01:12]}  Rf8 {[%clk 0:00:07]} 30. Qe2 {[%clk 0:01:09]}  Qg5 {[%clk 0:00:05]} 31. Ne6 {[%clk 0:01:04]}  Nxe6 {[%clk 0:00:03]} 32. dxe6 {[%clk 0:01:05]}  Bc6 {[%clk 0:00:04]} 33. Ne4 {[%clk 0:01:03]}  Bxe4 {[%clk 0:00:03]} 34. Qxe4 {[%clk 0:01:02]}  Qc5+ {[%clk 0:00:03]} 35. Bd4 {[%clk 0:00:59]} 1-0


[Site "https://www.chess.com"]

[Event "Titled Tuesday Blitz June 29 2021"]
[White "Jospem"]
[Black "moro182"]
[WhiteElo "2955"]
[BlackElo "2695"]
[Result "1-0"]
[Round "04"]
[TimeControl "180+1"]
[Date "2021.06.29"]
[WhiteClock "0:00:11"]
[BlackClock "0:00:07"]

1. e4 {[%clk 0:03:00]}  e5 {[%clk 0:03:00]} 2. Nf3 {[%clk 0:02:58]}  d6 {[%clk 0:03:00]} 3. Nc3 {[%clk 0:02:54]}  Be7 {[%clk 0:02:58]} 4. Bc4 {[%clk 0:02:50]}  c5 {[%clk 0:02:58]} 5. d3 {[%clk 0:02:47]}  Nc6 {[%clk 0:02:57]} 6. h3 {[%clk 0:02:47]}  Nf6 {[%clk 0:02:53]} 7. Bg5 {[%clk 0:02:47]}  O-O {[%clk 0:02:50]} 8. Bxf6 {[%clk 0:02:47]}  Bxf6 {[%clk 0:02:51]} 9. Nd5 {[%clk 0:02:47]}  Be6 {[%clk 0:02:51]} 10. a4 {[%clk 0:02:46]}  g6 {[%clk 0:02:34]} 11. O-O {[%clk 0:02:43]}  Bg7 {[%clk 0:02:34]} 12. c3 {[%clk 0:02:43]}  h6 {[%clk 0:02:22]} 13. b4 {[%clk 0:02:40]}  cxb4 {[%clk 0:02:18]} 14. cxb4 {[%clk 0:02:27]}  Bxd5 {[%clk 0:02:16]} 15. Bxd5 {[%clk 0:02:28]}  Nxb4 {[%clk 0:02:14]} 16. Bc4 {[%clk 0:02:24]}  d5 {[%clk 0:02:10]} 17. exd5 {[%clk 0:02:25]}  Nxd5 {[%clk 0:02:07]} 18. Qb3 {[%clk 0:02:20]}  Nf4 {[%clk 0:01:54]} 19. Qxb7 {[%clk 0:02:10]}  e4 {[%clk 0:01:26]} 20. Qxe4 {[%clk 0:02:02]}  Bxa1 {[%clk 0:01:25]} 21. Rxa1 {[%clk 0:01:48]}  Qf6 {[%clk 0:01:25]} 22. Ne5 {[%clk 0:01:43]}  Rad8 {[%clk 0:01:16]} 23. Re1 {[%clk 0:01:32]}  Kg7 {[%clk 0:01:15]} 24. Re3 {[%clk 0:01:29]}  Rfe8 {[%clk 0:00:56]} 25. d4 {[%clk 0:01:23]}  Qf5 {[%clk 0:00:19]} 26. Bxf7 {[%clk 0:01:04]}  Rxe5 {[%clk 0:00:09]} 27. dxe5 {[%clk 0:00:48]}  Qxf7 {[%clk 0:00:09]} 28. e6 {[%clk 0:00:40]}  Qf6 {[%clk 0:00:08]} 29. Rf3 {[%clk 0:00:21]}  g5 {[%clk 0:00:08]} 30. g3 {[%clk 0:00:21]}  Qxe6 {[%clk 0:00:07]} 31. Rxf4 {[%clk 0:00:21]}  Rd1+ {[%clk 0:00:07]} 32. Kh2 {[%clk 0:00:21]}  Qxe4 {[%clk 0:00:05]} 33. Rxe4 {[%clk 0:00:22]}  Rd2 {[%clk 0:00:05]} 34. Kg2 {[%clk 0:00:20]}  Kf6 {[%clk 0:00:05]} 35. Rc4 {[%clk 0:00:19]}  Rd6 {[%clk 0:00:05]} 36. Rc5 {[%clk 0:00:17]}  Ra6 {[%clk 0:00:03]} 37. a5 {[%clk 0:00:15]}  Kg6 {[%clk 0:00:03]} 38. f4 {[%clk 0:00:14]}  Rf6 {[%clk 0:00:03]} 39. Kf3 {[%clk 0:00:13]}  gxf4 {[%clk 0:00:03]} 40. gxf4 {[%clk 0:00:14]}  Rd6 {[%clk 0:00:03]} 41. Kg4 {[%clk 0:00:12]}  a6 {[%clk 0:00:04]} 42. Re5 {[%clk 0:00:12]}  Rf6 {[%clk 0:00:03]} 43. f5+ {[%clk 0:00:07]}  Kf7 {[%clk 0:00:02]} 44. Re6 {[%clk 0:00:06]}  Rxe6 {[%clk 0:00:02]} 45. fxe6+ {[%clk 0:00:07]}  Kxe6 {[%clk 0:00:03]} 46. Kh5 {[%clk 0:00:08]}  Kf5 {[%clk 0:00:01]} 47. Kxh6 {[%clk 0:00:09]}  Kf6 {[%clk 0:00:02]} 48. Kh5 {[%clk 0:00:09]}  Kf5 {[%clk 0:00:02]} 49. h4 {[%clk 0:00:09]}  Kf6 {[%clk 0:00:02]} 50. Kg4 {[%clk 0:00:09]}  Kg6 {[%clk 0:00:03]} 51. Kf4 {[%clk 0:00:05]}  Kh5 {[%clk 0:00:04]} 52. Ke5 {[%clk 0:00:05]}  Kxh4 {[%clk 0:00:04]} 53. Kd6 {[%clk 0:00:06]}  Kg5 {[%clk 0:00:05]} 54. Kc6 {[%clk 0:00:07]}  Kf6 {[%clk 0:00:06]} 55. Kb6 {[%clk 0:00:08]}  Ke6 {[%clk 0:00:07]} 56. Kxa6 {[%clk 0:00:09]}  Kd7 {[%clk 0:00:07]} 57. Kb7 {[%clk 0:00:10]}  Kd6 {[%clk 0:00:07]} 58. a6 {[%clk 0:00:11]} 1-0


[Site "https://www.chess.com"]

[Event "Titled Tuesday Blitz June 29 2021"]
[White "Murad_Ibrahimli"]
[Black "ValeriyGrinev"]
[WhiteElo "2834"]
[BlackElo "2603"]
[Result "1-0"]
[Round "04"]
[TimeControl "180+1"]
[Date "2021.06.29"]
[WhiteClock "0:02:19"]
[BlackClock "0:02:27"]

1. e4 {[%clk 0:03:00]}  e5 {[%clk 0:02:58]} 2. Nf3 {[%clk 0:03:00]}  Nc6 {[%clk 0:02:58]} 3. Bb5 {[%clk 0:02:59]}  a6 {[%clk 0:02:58]} 4. Ba4 {[%clk 0:02:59]}  Nf6 {[%clk 0:02:59]} 5. O-O {[%clk 0:02:59]}  Nxe4 {[%clk 0:02:58]} 6. d4 {[%clk 0:02:58]}  b5 {[%clk 0:02:57]} 7. Bb3 {[%clk 0:02:58]}  exd4 {[%clk 0:02:57]} 8. Re1 {[%clk 0:02:52]}  d5 {[%clk 0:02:56]} 9. Bxd5 {[%clk 0:02:48]}  Qxd5 {[%clk 0:02:44]} 10. Nc3 {[%clk 0:02:48]}  Qh5 {[%clk 0:02:44]} 11. Nxe4 {[%clk 0:02:48]}  Be7 {[%clk 0:02:40]} 12. Bg5 {[%clk 0:02:37]}  Be6 {[%clk 0:02:35]} 13. Bxe7 {[%clk 0:02:22]}  Kxe7 {[%clk 0:02:34]} 14. Nxd4 {[%clk 0:02:20]}  Qxd1 {[%clk 0:02:34]} 15. Nxc6+ {[%clk 0:02:20]}  Kd7 {[%clk 0:02:27]} 16. Ne5+ {[%clk 0:02:19]} 1-0


[Site "https://www.chess.com"]

[Event "Titled Tuesday Blitz June 29 2021"]
[White "elextranjero00"]
[Black "GM_dmitrij"]
[WhiteElo "2624"]
[BlackElo "2908"]
[Result "0-1"]
[Round "04"]
[TimeControl "180+1"]
[Date "2021.06.29"]
[WhiteClock "0:00:02"]
[BlackClock "0:00:13"]

1. c4 {[%clk 0:03:00]}  e5 {[%clk 0:02:54]} 2. Nc3 {[%clk 0:03:00]}  Bb4 {[%clk 0:02:53]} 3. Nd5 {[%clk 0:02:56]}  a5 {[%clk 0:02:53]} 4. a3 {[%clk 0:02:49]}  Bc5 {[%clk 0:02:48]} 5. e3 {[%clk 0:02:48]}  Nf6 {[%clk 0:02:46]} 6. Nf3 {[%clk 0:02:41]}  e4 {[%clk 0:02:42]} 7. d4 {[%clk 0:02:35]}  Be7 {[%clk 0:02:28]} 8. Nxf6+ {[%clk 0:02:19]}  Bxf6 {[%clk 0:02:14]} 9. Nd2 {[%clk 0:02:19]}  d5 {[%clk 0:02:11]} 10. cxd5 {[%clk 0:02:11]}  Qxd5 {[%clk 0:02:12]} 11. Qc2 {[%clk 0:01:59]}  Bf5 {[%clk 0:02:06]} 12. Qxc7 {[%clk 0:01:52]}  O-O {[%clk 0:02:03]} 13. Bc4 {[%clk 0:01:49]}  Qd7 {[%clk 0:01:56]} 14. Qxd7 {[%clk 0:01:39]}  Nxd7 {[%clk 0:01:57]} 15. Bd5 {[%clk 0:01:23]}  Rfe8 {[%clk 0:01:56]} 16. Bxb7 {[%clk 0:01:22]}  Rab8 {[%clk 0:01:56]} 17. Ba6 {[%clk 0:01:00]}  Re6 {[%clk 0:01:33]} 18. Bc4 {[%clk 0:00:56]}  Rd6 {[%clk 0:01:23]} 19. a4 {[%clk 0:00:37]}  Nb6 {[%clk 0:01:20]} 20. Bb5 {[%clk 0:00:30]}  Nd5 {[%clk 0:01:19]} 21. Nc4 {[%clk 0:00:29]}  Re6 {[%clk 0:01:06]} 22. Bd2 {[%clk 0:00:29]}  Be7 {[%clk 0:00:53]} 23. Bxa5 {[%clk 0:00:28]}  Rg6 {[%clk 0:00:48]} 24. g3 {[%clk 0:00:26]}  Bg4 {[%clk 0:00:48]} 25. Ne5 {[%clk 0:00:11]}  Bf3 {[%clk 0:00:48]} 26. Nxf3 {[%clk 0:00:10]}  exf3 {[%clk 0:00:49]} 27. Kd2 {[%clk 0:00:10]}  Nf6 {[%clk 0:00:43]} 28. Kd3 {[%clk 0:00:09]}  Ng4 {[%clk 0:00:43]} 29. Be1 {[%clk 0:00:06]}  Rh6 {[%clk 0:00:33]} 30. h3 {[%clk 0:00:06]}  f5 {[%clk 0:00:34]} 31. Rc1 {[%clk 0:00:05]}  Rd8 {[%clk 0:00:25]} 32. Rc2 {[%clk 0:00:03]}  Nf6 {[%clk 0:00:20]} 33. Bc3 {[%clk 0:00:02]}  Ne4 {[%clk 0:00:20]} 34. h4 {[%clk 0:00:03]}  g5 {[%clk 0:00:19]} 35. h5 {[%clk 0:00:02]}  g4 {[%clk 0:00:20]} 36. Bc6 {[%clk 0:00:03]}  Rxc6 {[%clk 0:00:19]} 37. Rhc1 {[%clk 0:00:02]}  Rb8 {[%clk 0:00:18]} 38. Be1 {[%clk 0:00:02]}  Ra6 {[%clk 0:00:16]} 39. b4 {[%clk 0:00:02]}  Rxa4 {[%clk 0:00:14]} 40. Rc8+ {[%clk 0:00:02]}  Rxc8 {[%clk 0:00:14]} 41. Rxc8+ {[%clk 0:00:02]}  Kf7 {[%clk 0:00:15]} 42. b5 {[%clk 0:00:03]}  Ra1 {[%clk 0:00:14]} 43. Bc3 {[%clk 0:00:03]}  Nxf2+ {[%clk 0:00:13]} 44. Kc4 {[%clk 0:00:03]}  Rb1 {[%clk 0:00:13]} 45. Kd5 {[%clk 0:00:02]}  Ne4 {[%clk 0:00:13]} 0-1


[Site "https://www.chess.com"]

[Event "Titled Tuesday Blitz June 29 2021"]
[White "grzechu96"]
[Black "exoticprincess"]
[WhiteElo "2632"]
[BlackElo "2868"]
[Result "1/2-1/2"]
[Round "04"]
[TimeControl "180+1"]
[Date "2021.06.29"]
[WhiteClock "0:00:07"]
[BlackClock "0:01:29"]

1. e4 {[%clk 0:03:00]}  c6 {[%clk 0:02:55]} 2. Nf3 {[%clk 0:02:58]}  d5 {[%clk 0:02:50]} 3. Nc3 {[%clk 0:02:58]}  Bg4 {[%clk 0:02:49]} 4. h3 {[%clk 0:02:58]}  Bxf3 {[%clk 0:02:50]} 5. Qxf3 {[%clk 0:02:59]}  e6 {[%clk 0:02:50]} 6. Be2 {[%clk 0:02:52]}  Nd7 {[%clk 0:02:50]} 7. d4 {[%clk 0:02:50]}  g6 {[%clk 0:02:47]} 8. O-O {[%clk 0:02:49]}  Bg7 {[%clk 0:02:45]} 9. Qd3 {[%clk 0:02:49]}  Ne7 {[%clk 0:02:44]} 10. Rd1 {[%clk 0:02:36]}  O-O {[%clk 0:02:44]} 11. Bf3 {[%clk 0:02:30]}  Qb6 {[%clk 0:02:34]} 12. a4 {[%clk 0:02:23]}  a5 {[%clk 0:02:33]} 13. Ra3 {[%clk 0:02:23]}  Rfe8 {[%clk 0:02:29]} 14. Rb3 {[%clk 0:02:21]}  Qc7 {[%clk 0:02:29]} 15. g3 {[%clk 0:02:01]}  Rad8 {[%clk 0:02:26]} 16. e5 {[%clk 0:01:58]}  Nf5 {[%clk 0:02:19]} 17. Bg5 {[%clk 0:01:39]}  Rc8 {[%clk 0:02:17]} 18. g4 {[%clk 0:01:37]}  Ne7 {[%clk 0:02:08]} 19. Qe3 {[%clk 0:01:35]}  Nb6 {[%clk 0:02:01]} 20. h4 {[%clk 0:01:30]}  Nc4 {[%clk 0:02:00]} 21. Qf4 {[%clk 0:01:31]}  Qd7 {[%clk 0:01:46]} 22. h5 {[%clk 0:01:13]}  c5 {[%clk 0:01:44]} 23. Nb5 {[%clk 0:01:10]}  cxd4 {[%clk 0:01:43]} 24. Bf6 {[%clk 0:01:10]}  Nc6 {[%clk 0:01:29]} 25. Bxg7 {[%clk 0:00:26]}  Kxg7 {[%clk 0:01:29]} 26. Qf6+ {[%clk 0:00:26]}  Kf8 {[%clk 0:01:29]} 27. Qh8+ {[%clk 0:00:08]}  Ke7 {[%clk 0:01:29]} 28. Qf6+ {[%clk 0:00:09]}  Kf8 {[%clk 0:01:29]} 29. Qh8+ {[%clk 0:00:07]}  Ke7 {[%clk 0:01:29]} 30. Qf6+ {[%clk 0:00:07]}  Kf8 {[%clk 0:01:29]} 1/2-1/2


[Site "https://www.chess.com"]

[Event "Titled Tuesday Blitz June 29 2021"]
[White "jcibarra"]
[Black "AnotherGrumpy"]
[WhiteElo "2826"]
[BlackElo "2558"]
[Result "0-1"]
[Round "04"]
[TimeControl "180+1"]
[Date "2021.06.29"]
[WhiteClock "0:00:03"]
[BlackClock "0:00:07"]

1. e4 {[%clk 0:03:00]}  c6 {[%clk 0:02:59]} 2. Nf3 {[%clk 0:03:00]}  d5 {[%clk 0:03:00]} 3. d3 {[%clk 0:03:00]}  g6 {[%clk 0:02:58]} 4. e5 {[%clk 0:03:00]}  Bg7 {[%clk 0:02:58]} 5. d4 {[%clk 0:02:59]}  Bg4 {[%clk 0:02:59]} 6. Nbd2 {[%clk 0:02:56]}  e6 {[%clk 0:02:59]} 7. h3 {[%clk 0:02:56]}  Bxf3 {[%clk 0:02:59]} 8. Nxf3 {[%clk 0:02:57]}  Ne7 {[%clk 0:02:58]} 9. Bd3 {[%clk 0:02:42]}  O-O {[%clk 0:02:58]} 10. Bf4 {[%clk 0:02:38]}  c5 {[%clk 0:02:58]} 11. dxc5 {[%clk 0:02:36]}  Qa5+ {[%clk 0:02:55]} 12. c3 {[%clk 0:02:34]}  Qxc5 {[%clk 0:02:55]} 13. Qd2 {[%clk 0:02:31]}  Nd7 {[%clk 0:02:52]} 14. O-O {[%clk 0:02:22]}  Nc6 {[%clk 0:02:53]} 15. Rfe1 {[%clk 0:02:21]}  b5 {[%clk 0:02:53]} 16. b4 {[%clk 0:02:01]}  Qb6 {[%clk 0:02:52]} 17. a4 {[%clk 0:01:56]}  a6 {[%clk 0:02:48]} 18. Bh6 {[%clk 0:01:35]}  Rfc8 {[%clk 0:02:31]} 19. Bxg7 {[%clk 0:01:30]}  Kxg7 {[%clk 0:02:32]} 20. Qf4 {[%clk 0:01:28]}  h6 {[%clk 0:02:17]} 21. h4 {[%clk 0:01:24]}  Ne7 {[%clk 0:02:15]} 22. Ra3 {[%clk 0:01:19]}  bxa4 {[%clk 0:02:13]} 23. h5 {[%clk 0:01:14]}  a5 {[%clk 0:01:56]} 24. hxg6 {[%clk 0:01:07]}  fxg6 {[%clk 0:01:54]} 25. Nd4 {[%clk 0:00:57]}  axb4 {[%clk 0:01:44]} 26. cxb4 {[%clk 0:00:57]}  Ra7 {[%clk 0:00:58]} 27. Nb5 {[%clk 0:00:40]}  Rb7 {[%clk 0:00:45]} 28. Nd6 {[%clk 0:00:37]}  Rf8 {[%clk 0:00:46]} 29. Qh4 {[%clk 0:00:31]}  g5 {[%clk 0:00:41]} 30. Qg3 {[%clk 0:00:31]}  Qxb4 {[%clk 0:00:37]} 31. Raa1 {[%clk 0:00:31]}  Ra7 {[%clk 0:00:31]} 32. Qh3 {[%clk 0:00:28]}  Nc5 {[%clk 0:00:31]} 33. Bc2 {[%clk 0:00:24]}  Qd2 {[%clk 0:00:29]} 34. Rac1 {[%clk 0:00:16]}  Qxf2+ {[%clk 0:00:29]} 35. Kh1 {[%clk 0:00:17]}  Rf4 {[%clk 0:00:30]} 36. g3 {[%clk 0:00:11]}  Rf3 {[%clk 0:00:21]} 37. Ne8+ {[%clk 0:00:10]}  Kf8 {[%clk 0:00:13]} 38. Rf1 {[%clk 0:00:07]}  Kxe8 {[%clk 0:00:11]} 39. Rxf2 {[%clk 0:00:06]}  Rxf2 {[%clk 0:00:12]} 40. Qxh6 {[%clk 0:00:06]}  Kd7 {[%clk 0:00:11]} 41. Qxg5 {[%clk 0:00:04]}  a3 {[%clk 0:00:11]} 42. Bb1 {[%clk 0:00:04]}  Nb3 {[%clk 0:00:10]} 43. Rc3 {[%clk 0:00:03]}  a2 {[%clk 0:00:10]} 44. Bxa2 {[%clk 0:00:03]}  Raxa2 {[%clk 0:00:09]} 45. Kg1 {[%clk 0:00:03]}  Rg2+ {[%clk 0:00:08]} 46. Kh1 {[%clk 0:00:03]}  Nd4 {[%clk 0:00:08]} 47. Qe3 {[%clk 0:00:02]}  Rh2+ {[%clk 0:00:08]} 48. Kg1 {[%clk 0:00:03]}  Rag2+ {[%clk 0:00:07]} 49. Kf1 {[%clk 0:00:03]}  Nef5 {[%clk 0:00:08]} 50. Qc1 {[%clk 0:00:03]}  Rf2+ {[%clk 0:00:07]} 51. Kg1 {[%clk 0:00:03]}  Ne2# {[%clk 0:00:07]} 0-1


[Site "https://www.chess.com"]

[Event "Titled Tuesday Blitz June 29 2021"]
[White "olksuna"]
[Black "Aleksandar-Topalov"]
[WhiteElo "2653"]
[BlackElo "2374"]
[Result "0-1"]
[Round "04"]
[TimeControl "180+1"]
[Date "2021.06.29"]
[WhiteClock "0:00:04"]
[BlackClock "0:00:24"]

1. e4 {[%clk 0:03:00]}  e6 {[%clk 0:02:59]} 2. d4 {[%clk 0:03:00]}  d5 {[%clk 0:02:59]} 3. Nc3 {[%clk 0:03:00]}  Bb4 {[%clk 0:02:58]} 4. Ne2 {[%clk 0:03:00]}  dxe4 {[%clk 0:02:55]} 5. a3 {[%clk 0:02:59]}  Be7 {[%clk 0:02:56]} 6. Nxe4 {[%clk 0:02:59]}  Nf6 {[%clk 0:02:56]} 7. Nxf6+ {[%clk 0:02:59]}  Bxf6 {[%clk 0:02:56]} 8. Be3 {[%clk 0:03:00]}  b6 {[%clk 0:02:55]} 9. Qd2 {[%clk 0:02:59]}  Bb7 {[%clk 0:02:55]} 10. O-O-O {[%clk 0:03:00]}  Nc6 {[%clk 0:02:55]} 11. Nf4 {[%clk 0:02:52]}  Qd7 {[%clk 0:02:53]} 12. d5 {[%clk 0:02:50]}  exd5 {[%clk 0:02:48]} 13. Nxd5 {[%clk 0:02:51]}  O-O-O {[%clk 0:02:45]} 14. Nxf6 {[%clk 0:02:50]}  Qxd2+ {[%clk 0:02:41]} 15. Rxd2 {[%clk 0:02:45]}  gxf6 {[%clk 0:02:40]} 16. Rxd8+ {[%clk 0:02:36]}  Rxd8 {[%clk 0:02:39]} 17. Bd3 {[%clk 0:02:37]}  h5 {[%clk 0:02:31]} 18. Rd1 {[%clk 0:02:31]}  Ne7 {[%clk 0:02:22]} 19. f3 {[%clk 0:02:26]}  c5 {[%clk 0:01:42]} 20. Bf2 {[%clk 0:02:24]}  Rd6 {[%clk 0:01:18]} 21. Bh4 {[%clk 0:02:12]}  Kd8 {[%clk 0:01:05]} 22. Bh7 {[%clk 0:01:19]}  Rxd1+ {[%clk 0:01:00]} 23. Kxd1 {[%clk 0:01:20]}  Nd5 {[%clk 0:00:59]} 24. c4 {[%clk 0:00:55]}  Ne3+ {[%clk 0:00:59]} 25. Kd2 {[%clk 0:00:50]}  Nxc4+ {[%clk 0:00:59]} 26. Kc3 {[%clk 0:00:49]}  Ne3 {[%clk 0:00:57]} 27. Bxf6+ {[%clk 0:00:49]}  Ke8 {[%clk 0:00:58]} 28. Be4 {[%clk 0:00:33]}  Bxe4 {[%clk 0:00:56]} 29. fxe4 {[%clk 0:00:34]}  Nxg2 {[%clk 0:00:56]} 30. Kc4 {[%clk 0:00:28]}  Ne3+ {[%clk 0:00:53]} 31. Kb5 {[%clk 0:00:25]}  Kd7 {[%clk 0:00:51]} 32. h3 {[%clk 0:00:20]}  Nd1 {[%clk 0:00:27]} 33. Ka6 {[%clk 0:00:12]}  Nf2 {[%clk 0:00:25]} 34. Kxa7 {[%clk 0:00:07]}  Kc6 {[%clk 0:00:25]} 35. Bd8 {[%clk 0:00:07]}  b5 {[%clk 0:00:25]} 36. h4 {[%clk 0:00:05]}  Nxe4 {[%clk 0:00:25]} 37. Ka6 {[%clk 0:00:05]}  f5 {[%clk 0:00:24]} 38. Ba5 {[%clk 0:00:03]}  f4 {[%clk 0:00:24]} 39. Be1 {[%clk 0:00:04]}  f3 {[%clk 0:00:24]} 0-1


[Site "https://www.chess.com"]

[Event "Titled Tuesday Blitz June 29 2021"]
[White "AnotherGrumpy"]
[Black "Murad_Ibrahimli"]
[WhiteElo "2571"]
[BlackElo "2837"]
[Result "1/2-1/2"]
[Round "05"]
[TimeControl "180+1"]
[Date "2021.06.29"]
[WhiteClock "0:00:54"]
[BlackClock "0:00:19"]

1. d4 {[%clk 0:03:00]}  Nf6 {[%clk 0:02:58]} 2. c4 {[%clk 0:03:00]}  e6 {[%clk 0:02:58]} 3. Nf3 {[%clk 0:03:00]}  d5 {[%clk 0:02:58]} 4. Nc3 {[%clk 0:03:00]}  Be7 {[%clk 0:02:56]} 5. Bf4 {[%clk 0:02:59]}  O-O {[%clk 0:02:56]} 6. e3 {[%clk 0:02:58]}  c5 {[%clk 0:02:54]} 7. cxd5 {[%clk 0:02:54]}  Nxd5 {[%clk 0:02:48]} 8. Nxd5 {[%clk 0:02:54]}  Qxd5 {[%clk 0:02:45]} 9. dxc5 {[%clk 0:02:54]}  Qxc5 {[%clk 0:02:41]} 10. a3 {[%clk 0:02:54]}  Nc6 {[%clk 0:02:39]} 11. Be2 {[%clk 0:02:52]}  e5 {[%clk 0:02:32]} 12. Bg3 {[%clk 0:02:52]}  Rd8 {[%clk 0:02:27]} 13. Qc1 {[%clk 0:02:52]}  Qxc1+ {[%clk 0:02:26]} 14. Rxc1 {[%clk 0:02:52]}  f6 {[%clk 0:02:27]} 15. O-O {[%clk 0:02:49]}  Be6 {[%clk 0:02:26]} 16. Rfd1 {[%clk 0:02:46]}  Bb3 {[%clk 0:02:23]} 17. Rxd8+ {[%clk 0:02:41]}  Rxd8 {[%clk 0:02:24]} 18. Kf1 {[%clk 0:02:38]}  g5 {[%clk 0:02:19]} 19. Ke1 {[%clk 0:02:19]}  Kf7 {[%clk 0:02:10]} 20. Nd2 {[%clk 0:02:18]}  Bd5 {[%clk 0:02:10]} 21. f3 {[%clk 0:02:13]}  h5 {[%clk 0:01:48]} 22. Bf2 {[%clk 0:02:13]}  a6 {[%clk 0:01:07]} 23. e4 {[%clk 0:02:03]}  Be6 {[%clk 0:01:07]} 24. Bxa6 {[%clk 0:02:03]}  bxa6 {[%clk 0:00:35]} 25. Rxc6 {[%clk 0:02:02]}  a5 {[%clk 0:00:36]} 26. Rc7 {[%clk 0:01:55]}  Ke8 {[%clk 0:00:32]} 27. Bc5 {[%clk 0:01:50]}  Bxc5 {[%clk 0:00:32]} 28. Rxc5 {[%clk 0:01:51]}  Rb8 {[%clk 0:00:33]} 29. Rxa5 {[%clk 0:01:42]}  Rxb2 {[%clk 0:00:32]} 30. Ra6 {[%clk 0:01:40]}  Ke7 {[%clk 0:00:32]} 31. a4 {[%clk 0:01:40]}  g4 {[%clk 0:00:28]} 32. a5 {[%clk 0:01:39]}  Ra2 {[%clk 0:00:28]} 33. Ra7+ {[%clk 0:01:39]}  Kd6 {[%clk 0:00:29]} 34. Ra8 {[%clk 0:01:26]}  Kc5 {[%clk 0:00:23]} 35. Re8 {[%clk 0:01:17]}  Bd7 {[%clk 0:00:20]} 36. Rd8 {[%clk 0:01:11]}  Bb5 {[%clk 0:00:20]} 37. Rd5+ {[%clk 0:01:11]}  Kb4 {[%clk 0:00:20]} 38. fxg4 {[%clk 0:01:07]}  hxg4 {[%clk 0:00:20]} 39. h4 {[%clk 0:01:08]}  gxh3 {[%clk 0:00:20]} 40. gxh3 {[%clk 0:01:09]}  Rxa5 {[%clk 0:00:20]} 41. h4 {[%clk 0:01:07]}  Ra1+ {[%clk 0:00:20]} 42. Kf2 {[%clk 0:01:07]}  Rh1 {[%clk 0:00:21]} 43. Nf3 {[%clk 0:01:02]}  Bc6 {[%clk 0:00:21]} 44. Rd6 {[%clk 0:00:56]}  Bxe4 {[%clk 0:00:21]} 45. Rxf6 {[%clk 0:00:54]}  Bxf3 {[%clk 0:00:21]} 46. Rxf3 {[%clk 0:00:52]}  Rxh4 {[%clk 0:00:22]} 47. Rf5 {[%clk 0:00:52]}  Rf4+ {[%clk 0:00:18]} 48. Rxf4+ {[%clk 0:00:52]}  exf4 {[%clk 0:00:19]} 49. Kf3 {[%clk 0:00:53]}  Kc4 {[%clk 0:00:19]} 50. Kxf4 {[%clk 0:00:54]} 1/2-1/2


[Site "https://www.chess.com"]